[Event "DSB-Frauenkader-Challenge 2021"]
[Site "Magdeburg"]
[Date "2021.04.09"]
[Round "5.4"]
[White "Paehtz, Elisabeth"]
[Black "Lubbe, Melanie"]
[Result "1/2-1/2"]
[ECO "E62"]
[WhiteElo "2467"]
[BlackElo "2274"]
[Annotator "ChessBase"]
[PlyCount "112"]
[EventDate "2021.03.30"]
[EventType "tourn"]
[EventCountry "GER"]
[SourceTitle "playchess.com"]
[Source "ChessBase"]
[SourceQuality "1"]
[TimeControl "40/5400+30:1800+30"]

1. d4 {[%emt 0:00:00]} Nf6 {[%emt 0:00:00]} 2. Nf3 {[%emt 0:00:00]} g6 {[%emt 0:00:00]} 3. c4 {[%emt 0:00:00]} Bg7 {[%emt 0:00:00]} 4. g3 {[%emt 0:00:00]} O-O {[%emt 0:00:00]} 5. Bg2 {[%emt 0:00:02]} d6 {[%emt 0:00:02]} 6. Nc3 {[%emt 0:00:15]} c6 {[%emt 0:00:22]} 7. O-O {[%emt 0:00:06]} Bf5 {[%emt 0:00:27]} 8. Ne1 {[%emt 0:00:04]} Be6 {[%emt 0:00:21]} 9. d5 {[%emt 0:00:03]} cxd5 {[%emt 0:00:09]} 10. cxd5 {[%emt 0:00:03]} Bd7 {[%emt 0:00:08]} 11. Nd3 {[%emt 0:00:02]} Na6 {[%emt 0:01:07]} 12. Bf4 {[%emt 0:00:06]} Qa5 {[%emt 0:05:25]} 13. Qd2 {[%emt 0:00:14]} Rfc8 {[%emt 0:07:48]} 14. Rfc1 {[%emt 0:03:36]} Qd8 {[%emt 0:06:10]} 15. e4 {[%emt 0:00:32]} Nc5 {[%emt 0:04:17]} 16. h3 {[%emt 0:07:16]} Nxd3 {[%emt 0:09:19]} 17. Qxd3 {[%emt 0:00:03]} Be8 {[%emt 0:00:32]} 18. Be3 {[%emt 0:04:12]} Nd7 {[%emt 0:01:52]} 19. Qe2 {[%emt 0:12:16]} Qa5 {[%emt 0:17:29]} 20. Nb5 {[%emt 0:24:53]} Nc5 {[%emt 0:09:36]} 21. Nd4 {[%emt 0:01:29]} Qa6 {[%emt 0:08:22]} 22. Qxa6 {[%emt 0:03:36]} Nxa6 {[%emt 0:00:06]} 23. Bf1 {[%emt 0:06:43]} Nc5 {[%emt 0:03:15]} 24. f3 {[%emt 0:00:56]} Bd7 {[%emt 0:02:05]} 25. Rab1 {[%emt 0:05:43]} Na4 {[%emt 0:05:53]} 26. Kg2 {[%emt 0:09:55]} Rc5 {[%emt 0:02:20]} 27. Ne2 {[%emt 0:03:40]} Rxc1 {[%emt 0:03:03]} 28. Rxc1 {[%emt 0:00:03]} Bxb2 {[%emt 0:05:18]} 29. Rc7 {[%emt 0:00:29]} Bb5 {[%emt 0:03:02]} 30. Rxb7 {[%emt 0:01:53]} a6 {[%emt 0:00:01]} 31. Nd4 {[%emt 0:02:33]} Nc3 {[%emt 0:01:34]} 32. Nc6 {[%emt 0:05:51]} e6 {[%emt 0:00:53]} 33. dxe6 {[%emt 0:00:29]} fxe6 {[%emt 0:00:33]} 34. Nd4 {[%emt 0:05:09]} Rc8 {[%emt 0:01:56]} 35. Bxb5 {[%emt 0:01:00]} axb5 {[%emt 0:00:17]} 36. Nxb5 {[%emt 0:02:03]} Nxb5 {[%emt 0:00:42]} 37. Rxb5 {[%emt 0:00:03]} Rc2+ {[%emt 0:00:10]} 38. Kf1 {[%emt 0:00:28]} Bc1 {[%emt 0:01:25]} 39. Rb8+ {[%emt 0:01:43]} Kf7 {[%emt 0:00:06]} 40. Rb7+ {[%emt 0:00:04]} Kg8 {[%emt 0:02:27]} 41. Bxc1 {[%emt 0:31:42]} Rxc1+ {[%emt 0:30:05]} 42. Kf2 {[%emt 0:00:00]} Rc2+ {[%emt 0:00:00]} 43. Ke3 {[%emt 0:00:00]} Rxa2 {[%emt 0:00:00]} 44. Kf4 {[%emt 0:00:00]} Ra3 {[%emt 0:00:00]} 45. Rd7 {[%emt 0:00:00]} Rd3 {[%emt 0:00:00]} 46. Kg4 {[%emt 0:00:00]} e5 {[%emt 0:00:00]} 47. f4 {[%emt 0:00:00]} exf4 {[%emt 0:00:20]} 48. gxf4 {[%emt 0:00:00]} Re3 {[%emt 0:00:22]} 49. Re7 {[%emt 0:00:00]} h6 {[%emt 0:01:04]} 50. h4 {[%emt 0:00:00]} Kf8 {[%emt 0:00:18]} 51. Rd7 {[%emt 0:00:00]} Rxe4 {[%emt 0:00:11]} 52. Rxd6 {[%emt 0:00:00]} Kg7 {[%emt 0:00:24]} 53. Rd7+ {[%emt 0:00:00]} Kf6 {[%emt 0:00:12]} 54. Rd6+ {[%emt 0:00:00]} Kg7 {[%emt 0:00:17]} 55. Rd7+ {[%emt 0:00:00]} Kf6 {[%emt 0:00:05]} 56. Rd6+ {[%emt 0:00:00]} Kg7 {[%emt 0:00:06]} 1/2-1/2

[Event "DSB-Frauenkader-Challenge 2021"]
[Site "Magdeburg"]
[Date "2021.04.10"]
[Round "6.1"]
[White "Sieber, Fiona"]
[Black "Lubbe, Melanie"]
[Result "0-1"]
[ECO "B45"]
[WhiteElo "2275"]
[BlackElo "2274"]
[Annotator "NA"]
[PlyCount "92"]
[EventDate "2021.03.30"]
[EventType "tourn"]
[EventCountry "GER"]
[SourceTitle "playchess.com"]
[Source "ChessBase"]
[SourceQuality "1"]
[TimeControl "40/5400+30:1800+30"]

1. e4 {[%emt 0:00:00]} c5 {[%emt 0:00:00]} 2. Nf3 {[%emt 0:00:00]} e6 {[%emt 0:00:00]} 3. d4 {[%emt 0:00:00]} cxd4 {[%emt 0:00:00]} 4. Nxd4 {[%emt 0:00:00]} Nf6 {[%emt 0:00:00]} 5. Nc3 {[%emt 0:00:00]} Nc6 {[%emt 0:00:00]} 6. Nxc6 {[%emt 0:02:18]} bxc6 {[%emt 0:00:03]} 7. e5 {[%emt 0:00:18]} Nd5 {[%emt 0:00:13]} 8. Ne4 {[%emt 0:00:16]} Qc7 {[%emt 0:00:23]} 9. f4 {[%emt 0:00:09]} Qb6 {[%emt 0:00:49]} 10. c4 {[%emt 0:00:44]} Ne3 {[%emt 0:05:33]} 11. Qd3 {[%emt 0:06:10]} Bb4+ {[%emt 0:01:53]} 12. Bd2 {[%emt 0:01:45]} Ba6 {[%emt 0:03:30]} 13. b3 {[%emt 0:07:31]} O-O {[%emt 0:01:37]} 14. Bxb4 {[%emt 0:03:56]} Qxb4+ {[%emt 0:00:06]} 15. Kf2 {[%emt 0:00:19]} Nd5 {[%emt 0:03:26]} 16. Qf3 {[%emt 0:25:13] [#]} f5 $1 {[%emt 0:17:51]} 17. Nd6 $17 {[%emt 0:01:04]} g5 {[%emt 0:32:18]} 18. Rd1 {[%emt 0:18:28]} Qc5+ {[%emt 0:02:55]} 19. Kg3 {[%emt 0:01:25]} Nxf4 {[%emt 0:10:05]} 20. h4 {[%emt 0:01:26]} Qxe5 {[%emt 0:01:14]} 21. hxg5 {[%emt 0:00:13]} Nd5+ {[%emt 0:02:01]} 22. Kf2 {[%emt 0:01:47]} Nc3 {[%emt 0:02:15]} 23. Qh5 {[%emt 0:08:17]} Nxd1+ {[%emt 0:00:20]} 24. Qxd1 {[%emt 0:00:02]} Qf4+ {[%emt 0:01:38]} 25. Ke1 {[%emt 0:00:32]} Qg3+ {[%emt 0:00:37]} 26. Ke2 {[%emt 0:00:15]} Qxg5 {[%emt 0:02:36]} 27. Rh3 {[%emt 0:00:02]} e5 {[%emt 0:00:56]} 28. Kf2 {[%emt 0:03:17]} Kh8 {[%emt 0:05:37]} 29. Kg1 {[%emt 0:02:24]} Rf6 {[%emt 0:00:21]} 30. b4 {[%emt 0:04:57]} Qg6 {[%emt 0:01:12]} 31. Rd3 {[%emt 0:00:20]} Rb8 {[%emt 0:01:12]} 32. Qe1 {[%emt 0:04:34]} Re6 {[%emt 0:00:36]} 33. b5 {[%emt 0:01:30]} cxb5 {[%emt 0:00:36]} 34. cxb5 {[%emt 0:00:09]} Bb7 {[%emt 0:01:04]} 35. Qc3 {[%emt 0:00:55]} Be4 {[%emt 0:02:33]} 36. Rg3 {[%emt 0:01:36]} Qf6 {[%emt 0:00:13]} 37. Qc7 {[%emt 0:00:11]} Rf8 {[%emt 0:00:23]} 38. Nc4 {[%emt 0:02:59]} f4 {[%emt 0:00:27]} 39. Rh3 {[%emt 0:00:28]} d5 {[%emt 0:00:57]} 40. Nd2 {[%emt 0:00:41]} Re7 {[%emt 0:00:57]} 41. Qc5 {[%emt 0:32:32]} Qb6 {[%emt 0:04:14]} 42. Nxe4 {[%emt 0:00:00]} dxe4 {[%emt 0:00:12]} 43. Qxb6 {[%emt 0:00:00]} axb6 {[%emt 0:00:06]} 44. Rh6 {[%emt 0:00:00]} e3 {[%emt 0:01:56]} 45. Rxb6 {[%emt 0:00:00]} e4 {[%emt 0:00:15]} 46. Bc4 {[%emt 0:00:00]} f3 {[%emt 0:01:08]} 0-1

[Event "DSB-Frauenkader-Challenge 2021"]
[Site "Magdeburg"]
[Date "2021.04.10"]
[Round "6.3"]
[White "Schneider, Jana"]
[Black "Ziegenfuss, Antonia"]
[Result "1-0"]
[ECO "B22"]
[WhiteElo "2272"]
[BlackElo "2101"]
[Annotator "NA"]
[PlyCount "61"]
[EventDate "2021.03.30"]
[EventType "tourn"]
[EventCountry "GER"]
[SourceTitle "playchess.com"]
[Source "ChessBase"]
[SourceQuality "1"]
[TimeControl "40/5400+30:1800+30"]

1. e4 {[%emt 0:00:00]} c5 {[%emt 0:00:00]} 2. Nf3 {[%emt 0:00:00]} e6 {[%emt 0:00:00]} 3. c3 {[%emt 0:00:00]} Nf6 {[%emt 0:00:00]} 4. e5 {[%emt 0:00:00]} Nd5 {[%emt 0:00:00]} 5. Bc4 {[%emt 0:00:07]} Nb6 $14 {[%emt 0:09:34]} 6. Bb3 {[%emt 0:00:29]} d6 {[%emt 0:01:22]} 7. exd6 {[%emt 0:03:29]} Bxd6 {[%emt 0:00:09]} 8. d4 {[%emt 0:00:37]} Nc6 {[%emt 0:06:00]} 9. O-O {[%emt 0:01:55]} O-O {[%emt 0:02:15]} 10. Re1 {[%emt 0:11:35]} cxd4 {[%emt 0:06:04]} 11. cxd4 {[%emt 0:00:36]} Nd5 {[%emt 0:04:45]} 12. Nc3 {[%emt 0:01:26]} Nxc3 {[%emt 0:15:26]} 13. bxc3 {[%emt 0:00:08]} Qc7 {[%emt 0:00:07]} 14. Bc2 {[%emt 0:07:44]} g6 {[%emt 0:17:37]} 15. Bh6 {[%emt 0:02:59]} Rd8 {[%emt 0:00:33]} 16. Qe2 {[%emt 0:00:39]} Bf4 {[%emt 0:04:41]} 17. Bg5 {[%emt 0:18:21]} Bxg5 {[%emt 0:01:25]} 18. Nxg5 {[%emt 0:00:07]} Qf4 {[%emt 0:02:09]} 19. Ne4 {[%emt 0:00:28]} b6 {[%emt 0:00:48]} 20. g3 {[%emt 0:04:57]} Qc7 {[%emt 0:00:23]} 21. Qg4 {[%emt 0:02:22]} f5 {[%emt 0:06:57]} 22. Nf6+ {[%emt 0:01:20]} Kf7 {[%emt 0:07:40]} 23. Qh4 {[%emt 0:02:12]} h6 {[%emt 0:00:53]} 24. d5 {[%emt 0:02:07]} Na5 {[%emt 0:00:29]} 25. dxe6+ {[%emt 0:10:53]} Bxe6 {[%emt 0:00:11]} 26. Qxh6 {[%emt 0:00:49]} Qxc3 {[%emt 0:05:20]} 27. Nh7 {[%emt 0:00:40]} Bd5 {[%emt 0:00:31]} 28. Bxf5 {[%emt 0:06:31]} gxf5 {[%emt 0:03:01]} 29. Rac1 {[%emt 0:00:13]} Re8 {[%emt 0:01:10]} 30. Ng5+ {[%emt 0:00:06]} Kg8 {[%emt 0:00:10]} 31. Qg6+ {[%emt 0:00:09]} 1-0